fUSD/lending_fUSD_20240215
["ID","MTS","AMOUNT","RATE_DAILY","PERIOD"]
[314074635,1707958255000,-150.0,0.00039088,2]
[314074636,1707958255009,-150.0,0.00039088,2]
[314074637,1707958255018,-150.0,0.00039088,2]
[314074638,1707958255029,-4291.07947062,0.00039141,12]
[314074639,1707958255038,-1488.77,0.00039178,7]
[314074640,1707958255048,-1049.96,0.00039178,7]
[314074641,1707958255057,-978.91,0.00039178,7]
[314074642,1707958255066,-500.0,0.00039178,7]
[314074643,1707958255075,-514.65,0.00039178,7]
[314074644,1707958255084,-500.0,0.00039178,7]
[314074645,1707958255093,-516.19,0.00039178,7]
[314074646,1707958255102,-580.18,0.00039178,7]
[314074647,1707958255112,-1358.62,0.00039178,7]
[314074648,1707958255121,-1447.259459,0.00039236,2]
[314074649,1707958255130,-165.51,0.0003926,2]
[314074650,1707958255139,-1001.0,0.00039288,20]
[314074651,1707958255148,-50000.0,0.00039306,30]
[314074652,1707958255157,-203.61,0.00039315,2]
[314074653,1707958255166,-565.12,0.00039359,7]
[314074654,1707958255176,-1000.0,0.00039359,7]
[314074655,1707958255185,-500.0,0.00039359,7]
[314074656,1707958255194,-202.0,0.00039421,18]
[314074657,1707958255203,-1488.77,0.00039452,7]
[314074658,1707958255213,-1049.96,0.00039452,7]
[314074659,1707958255222,-978.91,0.00039452,7]
[314074660,1707958255231,-500.0,0.00039452,7]
[314074661,1707958255240,-500.0,0.00039452,7]
[314074662,1707958255250,-516.19,0.00039452,7]
[314074663,1707958255259,-1358.62,0.00039452,7]
[314074664,1707958255269,-152.88,0.00039479,2]
[314074665,1707958255279,-500.0,0.00039495,10]
[314074666,1707958255288,-1000.0,0.000395,2]
[314074667,1707958255297,-4291.07947062,0.00039581,13]
[314074668,1707958255307,-159.35,0.0003963,2]
[314074669,1707958255316,-500.0,0.00039633,7]
[314074670,1707958255326,-275.02,0.00039636,2]
[314074671,1707958255335,-1001.0,0.00039689,20]
[314074672,1707958255344,-807.29514944,0.0003969,9]
[314074673,1707958255354,-266.67,0.000397,3]
[314074674,1707958255363,-266.67,0.000397,3]
[314074675,1707958255372,-266.67,0.000397,3]
[314074676,1707958255381,-266.67,0.000397,3]
[314074677,1707958255390,-266.67,0.000397,3]
[314074678,1707958255399,-266.67,0.000397,3]
[314074679,1707958255409,-266.67,0.000397,3]
[314074680,1707958255418,-266.67,0.000397,3]
[314074681,1707958255427,-266.67,0.000397,3]
[314074682,1707958255436,-266.67,0.000397,3]
[314074683,1707958255446,-266.67,0.000397,3]
[314074684,1707958255456,-266.67,0.000397,3]
[314074685,1707958255465,-266.67,0.000397,3]
[314074686,1707958255475,-266.67,0.000397,3]
[314074687,1707958255485,-266.67,0.000397,3]
[314074688,1707958255494,-266.67,0.000397,3]
[314074689,1707958255504,-266.67,0.000397,3]
[314074690,1707958255514,-266.67,0.000397,3]
[314074691,1707958255523,-266.67,0.000397,3]
[314074692,1707958255533,-266.67,0.000397,3]
[314074693,1707958255542,-500.0,0.00039726,15]
[314074694,1707958255551,-1488.77,0.00039726,7]
[314074695,1707958255561,-1049.96,0.00039726,7]
[314074696,1707958255569,-978.91,0.00039726,7]
[314074697,1707958255578,-500.0,0.00039726,7]
[314074698,1707958255587,-500.0,0.00039726,7]
[314074699,1707958255596,-516.19,0.00039726,7]
[314074700,1707958255606,-1358.62,0.00039726,7]
[314074701,1707958255615,-500.0,0.00039726,31]
[314074702,1707958255624,-500.0,0.00039726,31]
[314074703,1707958255633,-500.0,0.00039726,31]
[314074704,1707958255643,-500.0,0.00039726,31]
[314074705,1707958255651,-500.0,0.00039726,31]
[314074706,1707958255661,-443.89613779,0.00039726,31]
[314074707,1707958255670,-529.47990657,0.000399,120]
[314074708,1707958255679,-586.70314899,0.00039907,7]
[314074709,1707958255688,-3940.53989803,0.0003996,2]
[314074710,1707958255697,-255.0,0.0004,12]
[314074711,1707958255707,-255.0,0.0004,12]
[314074712,1707958255716,-200.0,0.0004,30]
[314074713,1707958255726,-255.0,0.0004,12]
[314074714,1707958255735,-255.0,0.0004,12]
[314074715,1707958255745,-343.63449307,0.0004,12]
[314074716,1707958255754,-1488.77,0.0004,7]
[314074717,1707958255763,-1049.96,0.0004,7]
[314074718,1707958255772,-506.70395349,0.0004,10]
[314074719,1707958255781,-978.91,0.0004,7]
[314074720,1707958255790,-500.0,0.0004,7]
[314074721,1707958255798,-193.57,0.0004,7]
[314074722,1707958255808,-516.19,0.0004,7]
[314074723,1707958255817,-1358.62,0.0004,7]
[314074724,1707958255826,-4291.07947062,0.00040021,13]
[314074725,1707958255835,-150.0,0.00040046,2]
[314074726,1707958255844,-150.0,0.00040088,2]
[314074727,1707958255853,-1001.0,0.0004009,20]
[314074728,1707958255862,-1446.54480322,0.0004009,20]
[314074729,1707958255871,-736.44471829,0.0004009,20]
[314074730,1707958255883,-150.0,0.00040099,2]
[314074731,1707958255893,-186.83697916,0.000401,2]
[314074732,1707958255902,-150.0,0.00040136,2]
[314074733,1707958255912,-150.0,0.00040138,2]
[314074734,1707958255922,-150.0,0.00040151,2]
[314074735,1707958255931,-150.0,0.00040162,2]
[314074736,1707958255940,-1123.49161923,0.0004018,5]
[314074737,1707958255949,-150.0,0.00040185,2]
[314074738,1707958255959,-150.0,0.00040204,2]
[314074739,1707958255970,-625.42,0.0004022,2]
[314074740,1707958255979,-150.0,0.00040236,2]
[314074741,1707958255989,-150.0,0.00040265,2]
[314074742,1707958255998,-1488.77,0.00040273,7]
[314074743,1707958256007,-1049.96,0.00040273,7]
[314074744,1707958256016,-978.91,0.00040273,7]
[314074745,1707958256026,-500.0,0.00040273,7]
[314074746,1707958256035,-516.19,0.00040273,7]
[314074747,1707958256045,-1358.62,0.00040273,7]
[314074748,1707958256055,-150.0,0.00040274,2]
[314074749,1707958256063,-150.0,0.00040281,2]
[314074750,1707958256073,-150.0,0.00040283,2]
[314074751,1707958256082,-150.0,0.0004029,2]
[314074752,1707958256092,-150.0,0.00040309,2]
[314074753,1707958256102,-150.0,0.00040314,2]
[314074754,1707958256111,-150.0,0.00040321,2]
[314074755,1707958256120,-150.0,0.00040332,2]
[314074756,1707958256130,-150.0,0.00040333,2]
[314074757,1707958256139,-202.0,0.00040357,20]
[314074758,1707958256148,-150.0,0.00040383,2]
[314074759,1707958256157,-150.0,0.00040387,2]
[314074760,1707958256167,-150.0,0.00040397,2]
[314074761,1707958256176,-150.0,0.00040421,30]
[314074762,1707958256185,-150.0,0.00040426,2]
[314074763,1707958256194,-150.0,0.00040459,2]
[314074764,1707958256203,-152.99265331,0.0004046,8]
[314074765,1707958256213,-4291.07947062,0.0004046,14]
[314074766,1707958256222,-150.0,0.00040462,2]
[314074767,1707958256232,-150.0,0.00040476,2]
[314074768,1707958256242,-1001.0,0.00040491,20]
[314074769,1707958256251,-150.0,0.00040493,2]
[314074770,1707958256261,-150.0,0.00040494,2]
[314074771,1707958256271,-150.0,0.00040497,2]
[314074772,1707958256280,-1000.0,0.000405,2]
[314074773,1707958256290,-150.0,0.00040502,2]
[314074774,1707958256299,-1500.0,0.00040515,2]
[314074775,1707958256309,-150.0,0.00040523,2]
[314074776,1707958256319,-150.0,0.00040536,2]
[314074777,1707958256329,-1488.77,0.00040547,7]
[314074778,1707958256340,-1049.96,0.00040547,7]
[314074779,1707958256349,-978.91,0.00040547,7]
[314074780,1707958256359,-500.0,0.00040547,7]
[314074781,1707958256368,-516.19,0.00040547,7]
[314074782,1707958256378,-1358.62,0.00040547,7]
[314074783,1707958256388,-150.0,0.00040559,2]
[314074784,1707958256398,-150.0,0.00040569,2]
[314074785,1707958256407,-150.0,0.00040582,2]
[314074786,1707958256416,-150.0,0.00040608,2]
[314074787,1707958256426,-150.0,0.00040638,2]
[314074788,1707958256435,-150.0,0.00040652,2]
[314074789,1707958256444,-200.0,0.00040663,15]
[314074790,1707958256454,-800.0,0.00040671,10]
[314074791,1707958256464,-200.0,0.00040671,20]
[314074792,1707958256473,-500.0,0.00040671,20]
[314074793,1707958256482,-150.0,0.00040677,2]
[314074794,1707958256491,-150.0,0.00040715,2]
[314074795,1707958256501,-1500.0,0.00040727,2]
[314074796,1707958256511,-150.0,0.00040736,2]
[314074797,1707958256521,-150.0,0.00040745,2]
[314074798,1707958256531,-150.0,0.00040763,2]
[314074799,1707958256541,-189.08471614,0.0004077,2]
[314074800,1707958256551,-150.0,0.00040776,2]
[314074801,1707958256560,-150.0,0.00040778,2]
[314074802,1707958256569,-150.0,0.00040785,2]
[314074803,1707958256579,-1412.0184,0.00040795,5]
[314074804,1707958256588,-150.0,0.0004081,2]
[314074805,1707958256597,-1447.259459,0.00040815,5]
[314074806,1707958256606,-150.0,0.00040816,2]
[314074807,1707958256615,-150.0,0.0004082,2]
[314074808,1707958256625,-1488.77,0.00040821,7]
[314074809,1707958256635,-1049.96,0.00040821,7]
[314074810,1707958256645,-978.91,0.00040821,7]
[314074811,1707958256654,-458.36342338,0.00040821,7]
[314074812,1707958256664,-516.19,0.00040821,7]
[314074813,1707958256674,-1358.62,0.00040821,7]
[314074814,1707958256684,-150.0,0.00040826,2]
[314074815,1707958256693,-150.0,0.00040868,2]
[314074816,1707958256702,-150.0,0.00040871,2]
[314074817,1707958256713,-150.0,0.00040875,2]
[314074818,1707958256815,-150.0,0.00040884,2]
[314074819,1707958256825,-283603.74205059,0.0004089,4]
[314074820,1707958256841,-1193706.91011655,0.0004089,4]
[314074821,1707958256851,-1001.0,0.00040892,20]
[314074822,1707958256860,-274.19993312,0.000409,2]
[314074823,1707958256869,-2862.1853,0.000409,2]
[314074824,1707958256878,-155.0,0.000409,2]
[314074825,1707958256888,-6475.9717,0.000409,2]
[314074826,1707958256898,-100000.0,0.000409,2]
[314074827,1707958256907,-4291.07947062,0.000409,15]
[314074828,1707958256916,-807.29514944,0.000409,10]
[314074829,1707958256925,-243.53194638,0.000409,2]
[314074830,1707958256935,-234.81834885,0.000409,2]
[314074831,1707958256944,-306.40696586,0.000409,2]
[314074832,1707958256953,-542.9686986,0.000409,2]
[314074833,1707958256964,-150.0,0.00040907,2]
[314074834,1707958256973,-150.0,0.00040958,120]
[314074835,1707958256982,-150.0,0.00040967,2]
[314074836,1707958256991,-719.6877957,0.00040972,2]
[314074837,1707958257000,-719.6877957,0.00040972,2]
[314074838,1707958257009,-719.6877957,0.00040972,2]
[314074839,1707958257018,-719.6877957,0.00040972,2]
[314074840,1707958257027,-719.6877957,0.00040972,2]
[314074841,1707958257036,-170.681534,0.00040972,2]
[314074842,1707958257044,-170.681534,0.00040972,2]
[314074843,1707958257053,-170.681534,0.00040972,2]
[314074844,1707958257062,-170.681534,0.00040972,2]
[314074845,1707958257071,-170.681534,0.00040972,2]
[314074846,1707958257081,-600.0,0.0004098,2]
[314074847,1707958257090,-150.0,0.00040984,2]
[314074848,1707958257099,-3000.0,0.00040987,7]
[314074849,1707958257108,-991.56600492,0.00040988,2]
[314074850,1707958257117,-217.94912607,0.0004099,2]
[314074851,1707958257127,-200.0,0.0004099,7]
[314074852,1707958257135,-200.0,0.0004099,7]
[314074853,1707958257144,-200.0,0.0004099,7]
[314074854,1707958257154,-200.0,0.0004099,7]
[314074855,1707958257162,-200.0,0.0004099,7]
[314074856,1707958257171,-200.0,0.0004099,7]
[314074857,1707958257180,-200.0,0.0004099,7]
[314074858,1707958257189,-200.0,0.0004099,7]
[314074859,1707958257198,-200.0,0.0004099,7]
[314074860,1707958257210,-200.0,0.0004099,7]
[314074861,1707958257219,-200.0,0.0004099,7]
[314074862,1707958257228,-207.40121661,0.0004099,7]
[314074863,1707958257237,-200.0,0.0004099,7]
[314074864,1707958257247,-200.0,0.0004099,7]
[314074865,1707958257256,-200.0,0.0004099,7]
[314074866,1707958257268,-200.0,0.0004099,7]
[314074867,1707958257277,-200.0,0.0004099,7]
[314074868,1707958257286,-719.6877957,0.00040991,2]
[314074869,1707958257295,-170.681534,0.00040991,2]
[314074870,1707958257304,-1003.07124314,0.00040995,3]
[314074871,1707958257313,-3315.42078673,0.00040997,2]
[314074872,1707958257322,-6247.35769278,0.00040997,2]
[314074873,1707958257331,-1767994.0607293,0.00041,4]
[314074874,1707958257344,-1599.5001,0.00041,4]
[314074875,1707958257377,-688.5,0.00035616,7]
[314074876,1707958257386,-500.0,0.00035616,7]
[314074877,1707958257395,-500.0,0.0003589,7]
[314074878,1707958257404,-600.15020702,0.00036164,7]
[314074879,1707958257413,-500.0,0.00036712,7]
[314074880,1707958257422,-2253.63471353,0.00041,4]
[314074881,1707958257572,-500.0,0.00035616,7]
[314074882,1707958257581,-500.0,0.00035616,7]
[314074883,1707958257590,-500.0,0.00035616,7]
[314074884,1707958257600,-688.5,0.0003589,7]
[314074885,1707958257609,-425.45,0.0003589,7]
[314074886,1707958257621,-74.55,0.0003589,7]
[314074887,1707958257630,-334.19576644,0.0003589,7]
[314074888,1707958257639,-500.0,0.00036164,7]
[314074889,1707958257647,-688.5,0.00036164,7]
[314074890,1707958257657,-153.26429495,0.00036164,7]
[314074891,1707958257665,-500.0,0.00036438,7]
[314074892,1707958257674,-688.5,0.00036438,7]
[314074893,1707958257683,-500.0,0.00036712,7]
[314074894,1707958257692,-688.5,0.00036712,7]
[314074895,1707958257701,-93.48993861,0.00036986,7]
[314074896,1707958257717,-406.51006139,0.00036986,7]
[314074897,1707958257726,-500.0,0.00036986,7]
[314074898,1707958257735,-688.5,0.00036986,7]
[314074899,1707958257744,-500.0,0.0003726,7]
[314074900,1707958257753,-500.0,0.0003726,7]
[314074901,1707958257762,-688.5,0.0003726,7]
[314074902,1707958257771,-633.28394511,0.00037534,7]
[314074903,1707958257780,-603.28747954,0.00037534,7]
[314074904,1707958257789,-688.5,0.00037534,7]
[314074905,1707958257798,-688.5,0.00037808,7]
[314074906,1707958257807,-688.5,0.00038082,7]
[314074907,1707958257816,-688.5,0.00038356,7]
[314074908,1707958257825,-133127.42207876,0.00041,4]
[314074909,1707958257837,-245218.69743861,0.00041,4]
[314074910,1707958257848,-1277.40783042,0.00041,4]
[314074911,1707958257860,-170944.65998602,0.00041,4]
[314074912,1707958257872,-813.861972,0.00041,4]
[314074913,1707958257911,-2906.69485,0.00041,4]
[314074914,1707958257923,-44051.45655206,0.00041,4]
[314074915,1707958257934,-5768.06284292,0.00041,4]
[314074916,1707958312132,2212.11406337,0.00021,4]
[314074918,1707958463111,578.20165213,0.000137,2]
[314074919,1707958463727,155.000001,0.00022,2]
[314074920,1707958467031,1892.94002713,0.00025,30]
[314074921,1707958467053,14923.55521825,0.00025,30]
[314074922,1707958595070,260.29333011,0.000247,9]
[314074923,1707958608329,150.0,0.00022,2]
[314074924,1707958622723,189.809999,0.0002298,7]
[314074925,1707958654442,200.0,0.00024577,30]
[314074926,1707958654509,200.0,0.00024577,30]
[314074927,1707958654561,319.65966527,0.00024577,30]
[314074928,1707958740360,208.23466408,0.000247,9]
[314074929,1707958756225,177.3,0.00022,2]
[314074930,1707958772669,156.45,0.00028203,120]
[314074931,1707958885662,166.58773128,0.000247,9]
[314074932,1707959097856,23900.0,0.00021892,2]
[314074933,1707959121469,10000.0,0.00021918,2]
[314074934,1707959122242,281.73,0.0002181,2]
[314074935,1707959135724,158.12,0.00021938,2]
[314074936,1707959135939,158.12,0.00022033,2]
[314074937,1707959136150,158.12,0.00022128,2]
[314074938,1707959160640,250.0,0.00021918,2]
[314074939,1707959195441,10000.0,0.0003001,120]
[314074940,1707959221594,10000.0,0.0003001,120]
[314074941,1707959223741,500.0,0.00021731,2]
[314074942,1707959233661,1827.86,0.00021918,2]
[314074943,1707959269938,195.02,0.00021673,2]
[314074944,1707959276526,2810.9,0.0003001,120]
[314074945,1707959314259,589.09,0.00019755,2]
[314074946,1707959314445,589.09,0.00022019,2]
[314074953,1707959320957,500.0,0.00021673,2]
[314074954,1707959327510,2576.01,0.00021673,2]
[314074964,1707959370124,241.79284484,0.00022,2]
[314074965,1707959371378,-259.23788974,0.00022224,2]
[314074966,1707959371401,-158.12,0.00022224,2]
[314074967,1707959371423,-158.12,0.00022319,2]
[314074968,1707959371446,-250.0,0.00022396,2]
[314074969,1707959371467,-158.12,0.00022414,2]
[314074970,1707959371487,-175.09488492,0.00022442,2]
[314074971,1707959371508,-1458.97912534,0.00022442,2]
[314074973,1707959412690,2000.0,0.00021762,2]
[314074983,1707959431950,-1041.02087466,0.00022442,2]
[314074984,1707959431960,-459.0684,0.00022442,2]
[314074985,1707959431971,-687.92086407,0.00022469,2]
[314074986,1707959431980,-386.36979406,0.00022469,2]
[314074987,1707959431992,-2984.2861,0.000225,2]
[314074988,1707959432002,-158.12,0.00022509,2]
[314074989,1707959432011,-1496.08,0.00022509,2]
[314074990,1707959432021,-150.0,0.0002254,2]
[314074991,1707959432030,-6126.17309946,0.00022541,2]
[314074992,1707959432039,-238.22426436,0.00022569,2]
[314074993,1707959432050,-238.22426433,0.00022586,2]
[314074994,1707959432059,-5685.56,0.000226,5]
[314074995,1707959432068,-238.22426433,0.00022604,2]
[314074996,1707959432078,-355.6,0.00022604,2]
[314074997,1707959432087,-158.12,0.00022605,2]
[314074998,1707959432096,-238.22426433,0.00022621,2]
[314074999,1707959432105,-238.22426433,0.00022639,2]
[314075000,1707959432114,-238.22426433,0.00022656,2]
[314075001,1707959432123,-678.4512,0.0002267,2]
[314075002,1707959432132,-300.0,0.0002267,2]
[314075003,1707959432141,-190.1123,0.0002267,2]
[314075004,1707959432151,-2454.0547,0.0002267,2]
[314075005,1707959432161,-3343.7744,0.0002267,2]
[314075006,1707959432170,-4662.3404,0.0002267,2]
[314075007,1707959432179,-238.22426433,0.00022674,2]
[314075008,1707959432189,-238.22426433,0.00022691,2]
[314075009,1707959432198,-158.12,0.000227,2]
[314075010,1707959432207,-238.22426433,0.00022708,2]
[314075011,1707959432216,-238.22426433,0.00022726,2]
[314075012,1707959432225,-238.22426433,0.00022743,2]
[314075023,1707959432234,-238.22426433,0.00022761,2]
[314075025,1707959432414,-5350.1177633,0.0002277,2]
[314075027,1707959432427,-1703.3328388,0.0002277,2]
[314075029,1707959432439,-2739.5493979,0.0002277,2]
[314075030,1707959432448,-238.22426433,0.00022778,2]
[314075031,1707959432457,-158.12,0.00022795,2]
[314075032,1707959432466,-238.22426433,0.00022795,2]
[314075033,1707959432475,-1566.1384,0.000228,2]
[314075034,1707959432484,-1000.0,0.000228,2]
[314075035,1707959432494,-238.22426433,0.00022813,2]
[314075036,1707959432503,-238.22426433,0.0002283,2]
[314075037,1707959432512,-238.22426433,0.00022848,2]
[314075038,1707959432521,-238.22426433,0.00022865,2]
[314075039,1707959432530,-238.22426433,0.00022883,2]
[314075040,1707959432539,-11850.55125006,0.0002289,2]
[314075041,1707959432551,-977.69660047,0.0002289,2]
[314075042,1707959432563,-1926.7925768,0.0002289,2]
[314075043,1707959432575,-480.34451528,0.0002289,2]
[314075044,1707959432588,-342.23198443,0.0002289,2]
[314075045,1707959432598,-158.12,0.0002289,2]
[314075046,1707959432607,-2432.682,0.000229,2]
[314075047,1707959432616,-11116.96601557,0.000229,2]
[314075048,1707959432627,-1210.24940779,0.000229,2]
[314075049,1707959432648,-601.15288457,0.000229,2]
[314075050,1707959432661,-525.22839655,0.000229,2]
[314075051,1707959432673,-330.19856431,0.000229,2]
[314075052,1707959432688,-655.60712406,0.000229,2]
[314075053,1707959432700,-365.9294122,0.000229,2]
[314075054,1707959432711,-1729.55939413,0.000229,2]
[314075055,1707959432730,-560.89301711,0.000229,2]
[314075056,1707959432743,-382.91036131,0.000229,2]
[314075057,1707959432754,-2080.71020239,0.000229,2]
[314075058,1707959432765,-4173.169,0.000229,2]
[314075059,1707959432776,-10462.05080134,0.000229,2]
[314075060,1707959432788,-911.34970599,0.000229,2]
[314075066,1707959437957,-251.70096473,0.000229,2]
[314075067,1707959437975,-3678.24169276,0.000229,2]
[314075068,1707959438021,-56937.04369292,0.000229,2]
[314075069,1707959438136,-117749.30766227,0.000229,2]
[314075070,1707959438147,-238.22426433,0.000229,2]
[314075071,1707959438158,-3113.91,0.000229,2]
[314075072,1707959438169,-3113.91,0.000229,2]
[314075073,1707959438179,-377.65000181,0.00022981,2]
[314075074,1707959438190,-192.91967139,0.00022981,2]
[314075075,1707959438201,-158.12,0.00022986,2]
[314075076,1707959438212,-20910.42271373,0.00023,2]
[314075077,1707959438225,-549.00530658,0.00023,2]
[314075078,1707959438238,-2349.81200394,0.00023,2]
[314075079,1707959438267,-2832.3389394,0.00023,2]
[314075080,1707959438280,-5335.31313887,0.00023,2]
[314075081,1707959438292,-84032.66840838,0.00023,2]
[314075082,1707959438304,-424.88047589,0.00023,2]
[314075083,1707959438317,-1009.99516308,0.00023,2]
[314075084,1707959438340,-1231.24899769,0.00023,2]
[314075085,1707959438353,-1002.64626644,0.00023,2]
[314075148,1707959441362,-831.49447577,0.00022981,2]
[314075149,1707959441372,-236.7989455,0.00023,2]
[314075150,1707959441384,-3014.6426397,0.00023,2]
[314075151,1707959441396,-968.8370397,0.00023,2]
[314075152,1707959441422,-4293.718001,0.00023,2]
[314075153,1707959441487,-7775.11272454,0.00023,2]
[314075154,1707959441500,-8947.21879473,0.00023,2]
[314075155,1707959441511,-8416.45003259,0.00023,2]
[314075156,1707959441521,-527.33383203,0.00023,2]
[314075157,1707959441533,-9077.54866152,0.00023,2]
[314075158,1707959441545,-8943.84023489,0.00023,2]
[314075159,1707959441557,-161306.81607902,0.00023,2]
[314075160,1707959441576,-625.28466,0.00023,2]
[314075166,1707959442996,-3001.8783814,0.00022442,2]
[314075167,1707959444210,150.0,0.00022,2]
[314075168,1707959444622,-11504.03933285,0.00022442,2]
[314075169,1707959444634,-42277.46618575,0.00022442,2]
[314075170,1707959444644,-76776.87353735,0.00023,2]
[314075171,1707959444716,-3552.23512077,0.00023,2]
[314075172,1707959444732,-6010.24233584,0.00023,2]
[314075173,1707959444775,-80296.3035,0.00023,2]
[314075174,1707959444788,-19499.42417036,0.00023,2]
[314075183,1707959446177,-150.0,0.00022548,2]
[314075184,1707959446186,-2513.2001,0.00023,2]
[314075185,1707959446199,-119353.80481906,0.00023,2]
[314075186,1707959446211,-4666.61048003,0.00023,2]
[314075187,1707959446225,-313.23148025,0.00023,2]
[314075188,1707959446236,-545.5168824,0.00023,2]
[314075189,1707959446256,-15618.26999998,0.00023,2]
[314075190,1707959446270,-2796.0,0.00023,2]
[314075191,1707959446281,-2901.94995,0.00023,2]
[314075192,1707960247450,200.7,0.00025302,120]
[314075193,1707960397107,-153.68257236,0.00022362,2]
[314075196,1707960514129,-26.31742764,0.00022362,2]
[314075197,1707960514150,-336.0,0.00022441,2]
[314075198,1707960514171,-150.0,0.00022441,2]
[314075199,1707960514192,-1000.0,0.00022442,2]
[314075200,1707960514214,-150.0,0.00022597,2]
[314075201,1707960514235,-23900.0,0.00022597,2]
[314075202,1707960514257,-150.0,0.00022628,2]
[314075203,1707960514281,-13199.3292,0.0002267,2]
[314075204,1707960514306,-155.72474861,0.00022681,2]
[314075205,1707960514330,-1070.32008381,0.00022685,2]
[314075206,1707960514353,-59862.30853994,0.0002277,2]
[314075207,1707960515437,-100000.0,0.0002277,2]
[314075208,1707960515745,-100000.0,0.0002277,2]
[314075209,1707960516155,-100000.0,0.0002277,2]
[314075210,1707960516489,-58033.69146006,0.0002277,2]
[314075211,1707960516515,-972.9150521,0.00022781,2]
[314075212,1707960516539,-2000.0,0.00022797,2]
[314075213,1707960516562,-499.99,0.00022797,2]
[314075214,1707960516584,-300.0,0.00022881,2]
[314075215,1707960516606,-699.34,0.00022881,2]
[314075216,1707960516630,-1000.0,0.000229,2]
[314075217,1707960516655,-278.76,0.000229,2]
[314075218,1707960516676,-192.91967139,0.000229,2]
[314075219,1707960516696,-554.32965052,0.000229,2]
[314075220,1707960516717,-500.0,0.00022973,2]
[314075221,1707960516741,-34968.05416593,0.00023,2]
[314075222,1707960516977,-100000.0,0.00023,2]
[314075223,1707960517346,-100000.0,0.00023,2]
[314075224,1707960517671,-100000.0,0.00023,2]
[314075225,1707960518042,-100000.0,0.00023,2]
[314075226,1707960521691,-3615.24571514,0.000229,2]
[314075227,1707960521717,-96384.75428486,0.00023,2]
[314075228,1707960524718,-100000.0,0.00023,2]
[314075229,1707960525390,-100000.0,0.00023,2]
[314075230,1707960525872,-100000.0,0.00023,2]
[314075231,1707960526446,-100000.0,0.00023,2]
[314075232,1707960527022,-100000.0,0.00023,2]
[314075233,1707960527827,-100000.0,0.00023,2]
[314075234,1707960528241,-100000.0,0.00023,2]
[314075237,1707960529493,-948.90172724,0.00022523,2]
[314075238,1707960529517,-99051.09827276,0.00023,2]
[314075239,1707960530773,-100000.0,0.00023,2]
[314075240,1707960532128,-100000.0,0.00023,2]
[314075248,1707960632251,-184.6283555,0.000229,2]
[314075249,1707960632261,-153.37,0.00022968,2]
[314075250,1707960632270,-150.0,0.00022999,2]
[314075251,1707960632279,-635.15405421,0.00023,2]
[314075252,1707960632306,-1184.4109398,0.00023,2]
[314075253,1707960632348,-275.4989472,0.00023,2]
[314075254,1707960632359,-267206.47331649,0.00023,2]
[314075255,1707960632389,-3304.51694826,0.00023,2]
[314075256,1707960632433,-579.93156402,0.00023,2]
[314075257,1707960632445,-516.09812629,0.00023,2]
[314075258,1707960632465,-1294.10283073,0.00023,2]
[314075259,1707960632481,-203885.60320148,0.00023,2]
[314075260,1707960632492,-3808.17496852,0.00023,2]
[314075261,1707960632522,-1526.95921404,0.00023,2]
[314075263,1707960638174,-291335.43947157,0.00023,2]
[314075264,1707960638183,-2000.0,0.00023,2]
[314075265,1707960638192,-200.0,0.00023,2]